Workbook

Sheet Лист1
B1: отчет по реализации программы "Развитие производительных сил Тонкинского муниципального района на 2013-2020годы"
B3: № | C3: Наименование предприятия/хозяйствующего субъекта (с указанием типа - крупное, среднее, малое, ИП)/наименование поселения | D3: Наименование проекта/мероприятия | T3: Эффект от реализации проектов /мероприятий | U3: Эффект от реализации проектов /мероприятий | V3: Эффект от реализации проектов /мероприятий | W3: Эффект от реализации проектов /мероприятий | X3: Эффект от реализации проектов /мероприятий | Y3: Эффект от реализации проектов /мероприятий | Z3: Эффект от реализации проектов /мероприятий | AA3: Эффект от реализации проектов /мероприятий | AB3: Эффект от реализации проектов /мероприятий | AC3: Эффект от реализации проектов /мероприятий | AD3: Эффект от реализации проектов /мероприятий | AE3: Эффект от реализации проектов /мероприятий | AF3: Дополнительная информация о проекте/мероприятии (с указанием причин невыполнения)
B4: № | C4: Наименование предприятия/хозяйствующего субъекта (с указанием типа - крупное, среднее, малое, ИП)/наименование поселения | D4: Наименование проекта/мероприятия | E4: Всего, в т.ч. | F4: Всего, в т.ч. | G4: Всего, в т.ч. | H4: Всего, в т.ч. | I4: Всего, в т.ч. | J4: Всего, в т.ч. | K4: Областной бюджет | L4: Областной бюджет | M4: Областной бюджет | N4: Областной бюджет | O4: Областной бюджет | P4: Областной бюджет | Q4: Частные инвестиции (собственные и привлеченные средства) | R4: Частные инвестиции (собственные и привлеченные средства) | S4: Частные инвестиции (собственные и привлеченные средства) | T4: Объем отгруженной продукции (услуг), млн.руб. | U4: Объем отгруженной продукции (услуг), млн.руб. | V4: Объем отгруженной продукции (услуг), млн.руб. | W4: Объем оборота розничной торговли и общественного питания, млн. руб. | X4: Объем оборота розничной торговли и общественного питания, млн. руб. | Y4: Объем оборота розничной торговли и общественного питания, млн. руб. | Z4: Налоговые поступления в консолидированный бюджет, млн.руб. | AA4: Налоговые поступления в консолидированный бюджет, млн.руб. | AB4: Налоговые поступления в консолидированный бюджет, млн.руб. | AC4: Создано рабочих мест, ед. | AD4: Создано рабочих мест, ед. | AE4: Создано рабочих мест, ед. | AF4: Дополнительная информация о проекте/мероприятии (с указанием причин невыполнения)
B5: № | C5: Наименование предприятия/хозяйствующего субъекта (с указанием типа - крупное, среднее, малое, ИП)/наименование поселения | D5: Наименование проекта/мероприятия | E5: План | F5: Профинансировано в рамках ПРПС | G5: Освоено (кассовые расходы) в рамках ПРПС | H5: % финансирования от плана | I5: % освоения средств от объема финансирования | J5: % освоения средств от плана | K5: План | L5: Профинансировано в рамках ПРПС | M5: Освоено (кассовые расходы) в рамках ПРПС | N5: % финансирования от плана | O5: % освоения средств от объема финансирования | P5: % освоения средств от плана | Q5: План | R5: Факт | S5: % от плана | T5: План | U5: Факт | V5: % от плана | W5: План | X5: Факт | Y5: % от плана | Z5: План | AA5: Факт | AB5: % от плана | AC5: План | AD5: Факт | AE5: % от плана | AF5: Дополнительная информация о проекте/мероприятии (с указанием причин невыполнения)
B6: Промышленность | E6: =E7+E8+E9+E10+E11+E12+E13+E14+E15+E16+E17+E18+E19+E20+E21 -> 18.15 | F6: 0 | G6: 17.73 | H6: 0 | I6: 0 | J6: =G6/E6*100 -> 97.68595041 | K6: 0.3 | L6: 0.3 | M6: 0.3 | N6: 0 | O6: 0 | P6: 0 | Q6: 17.85 | R6: =R7+R8+R9+R10+R11+R12+R13+R14+R15+R17+R18+R19+R20+R21 -> 17.43 | S6: =R6/Q6*100 -> 97.64705882 | T6: 81.1 | U6: 86.65 | V6: =U6/T6*100 -> 106.8434032 | W6: 0 | X6: 0 | Z6: 13.37 | AA6: 12.87 | AB6: =AA6/Z6*100 -> 96.26028422 | AC6: 32 | AD6: 28 | AE6: =AD6/AC6*100 -> 87.5
B7: 9.150 | C7: МУП "Тонкинские теплосети" / Малое / Тонкино | D7: 9.150 Проект по использованию отходов деревообработки для выработки теплоэнергии | E7: 0.9 | G7: =M7+R7 -> 0.1 | H7: 0 | J7: =G7/E7*100 -> 11.11111111 | Q7: 0.9 | R7: 0.1 | S7: =R7/Q7*100 -> 11.11111111 | T7: 40 | U7: 44.55 | V7: =U7/T7*100 -> 111.375 | Z7: 6 | AA7: 6.2 | AB7: =AA7/Z7*100 -> 103.3333333 | AC7: 6 | AE7: =AD7/AC7*100 -> 0
B8: 9.151 | C8: ИП Голубев О.Е. / ИП / | D8: 9.151 Творческая мастерская "Свечевар" | E8: 0.1 | G8: =M8+R8 -> 0.1 | H8: 0 | J8: 100 | Q8: 0.1 | R8: 0.1 | S8: 100 | T8: 0.9 | U8: 0.96 | V8: 106.6666667 | Z8: 0.2 | AA8: 0.2 | AB8: 100 | AC8: 2 | AD8: 2 | AE8: 100
B9: 3.162 | C9: ООО "Фармстронг" / Малое / Тонкино | D9: 3.162 Создание строительного предприятия | G9: 0
B10: 3.163 | C10: ООО «Кварц» / Малое / | D10: 3.163 Создание строительного предприятия | E10: 3 | G10: 3 | H10: 0 | J10: 100 | Q10: 3 | R10: 3 | S10: 100 | T10: 3 | U10: 0.76 | V10: 25.33333333 | Z10: 0.2 | AA10: 0.1 | AB10: 50 | AC10: 5 | AD10: 5 | AE10: 100
B11: 2.484. | C11: ОАО "Молоко" / Малое / Тонкино | D11: 2.484. Создание предприятия по розливу питьевой воды | G11: 0
B12: 2.485. | C12: ООО "ТД "Агрофирма "Нива" / Малое / Тонкино | D12: 2.485. Цех по первичной переработке мяса и молока | G12: 0 | T12: 1.8 | U12: 3.72 | V12: 206.6666667 | Z12: 0.27 | AA12: 0.4 | AB12: 148.1481481
B13: 1.904 | C13: ООО "Тонкино-лес" / Малое / Тонкино | D13: 1.904 Реконструкция действующего производства | G13: 0 | T13: 8 | U13: 15.3 | V13: 191.25 | Z13: 1.68 | AA13: 1.98 | AB13: 117.8571429 | AC13: 10 | AD13: 10 | AE13: 100
B14: 1.905 | C14: ООО "Лесное" / Малое / Тонкино | D14: 1.905 Реконструкция действующего производства | E14: 6 | G14: 6.1 | H14: 0 | J14: 101.6666667 | Q14: 6 | R14: 6.1 | S14: 101.6666667 | T14: 11 | U14: 12 | V14: 109.0909091 | Z14: 2.31 | AA14: 2.31 | AB14: 100
B15: 1.906 | C15: ООО "Надежда" / Малое / Тонкино | D15: 1.906 Модернизация цеха по деревообработке | G15: 0 | T15: 3 | U15: 1.5 | V15: 50 | Z15: 0.63 | AA15: 0.32 | AB15: 50.79365079
B16: 1.907 | C16: ИП Аревшатян А.А. / ИП / | D16: 1.907 Строительство пекарни | E16: 0.85 | G16: 0 | H16: 0 | J16: 0 | Q16: 0.85 | S16: 0
B17: 1.908 | C17: ООО "Теремъ" / Малое / Тонкино | D17: 1.908 Создание предприятия по производству клееного бруса | G17: 0
B18: 1.909 | C18: ИП Тимачев В. / ИП / Тонкино | D18: 1.909 Создание предприятия по производству искусств-енного камня | G18: 0 | T18: 1.3 | U18: 1.3 | V18: 100 | Z18: 0.27 | AA18: 0.27 | AB18: 100
B19: 1.910 | C19: ООО "Агрофирма "Нива" / Малое / Тонкино | D19: 1.910 Строительство завода по переработке льна | G19: 1.13 | R19: 1.13 | T19: 7.6 | U19: 4.2 | V19: 55.26315789 | Z19: 1.3 | AA19: 0.72 | AB19: 55.38461538 | AD19: 2
B20: 1.911 | C20: ООО "Дубрава" / Малое / | D20: 1.911 Создание деревообрабатывающего предприятия | E20: 6 | G20: 6 | H20: 0 | J20: 100 | Q20: 6 | R20: 6 | S20: 100 | T20: 3 | U20: 0.86 | V20: 28.66666667 | Z20: 0.36 | AA20: 0.22 | AB20: 61.11111111 | AC20: 7 | AD20: 7 | AE20: 100
B21: 1.912 | C21: ИП Аревшатян Г.В. / ИП / | D21: 1.912 Производство и ремонт мебели | E21: 1.3 | G21: 1.3 | H21: 0 | J21: 100 | K21: 0.3 | L21: 0.3 | M21: 0.3 | N21: 0 | P21: 0 | Q21: 1 | R21: 1 | S21: 100 | T21: 1.5 | U21: 1.5 | V21: 100 | Z21: 0.15 | AA21: 0.15 | AB21: 100 | AC21: 2 | AD21: 2 | AE21: 100
E22: =E23+E24+E25 -> 22 | F22: =F23+F24+F25 -> 36.69 | G22: 36.69 | H22: 0 | I22: 0 | J22: 166.7727273 | K22: 0 | L22: 0 | M22: 0 | N22: 0 | O22: 0 | P22: 0 | Q22: 22 | R22: 36.69 | S22: 166.7727273 | T22: 1 | U22: 1 | V22: 100 | W22: 0 | X22: 0.02 | Z22: 0.05 | AA22: 0 | AB22: 0 | AC22: 4 | AD22: 2 | AE22: 50
B23: 2.486. | C23: ООО "Агрофирма "Нива" / Малое / | D23: 2.486. Строительство молочно-товарной фермы на 408 голов | E23: 8 | F23: 24.15 | G23: 24.15 | H23: 0 | J23: 301.875 | Q23: 8 | R23: 24.15 | S23: 301.875 | Z23: 0.02 | AB23: 0 | AC23: 2 | AD23: 2 | AE23: 100
B24: 2.487. | C24: ООО "Агрофирма Нива" / Малое / Большесодомовский | D24: 2.487. Приобретение сельскохозяйственной техники | E24: 12 | F24: 12.54 | G24: 12.54 | H24: 0 | J24: 104.5 | Q24: 12 | R24: 12.54 | S24: 104.5 | T24: 1 | U24: 1 | V24: 100 | X24: 0.02 | Z24: 0.02 | AB24: 0
B25: 2.488. | C25: ИП района / ИП / | D25: 2.488. Создание рыбохозяйства | E25: 2 | G25: 0 | H25: 0 | J25: 0 | Q25: 2 | S25: 0 | Z25: 0.01 | AB25: 0 | AC25: 2 | AE25: 0
E26: =E27+E28+E29+E30+E31+E33+E34+E36+E37 -> 13 | F26: =F27+F28+F29+F30+F31+F33+F34+F36+F37 -> 0 | G26: =G27+G28+G29+G30+G31+G32+G33+G34+G35+G36+G37 -> 16.9 | H26: =H27+H28+H29+H30+H31+H33+H34+H36+H37 -> 0 | I26: 0 | J26: 130 | K26: 0 | L26: 0 | M26: 0 | N26: 0 | O26: 0 | P26: 0 | Q26: 13 | R26: 15.9 | S26: 122.3076923 | T26: 5 | U26: 5.06 | V26: 101.2 | W26: 42.4 | X26: 29.4 | Y26: =X26/W26*100 -> 69.33962264 | Z26: 8.38 | AA26: 6.31 | AB26: 75.29832936 | AC26: 49 | AD26: 50 | AE26: 102.0408163 | AF26: =AF27+AF28+AF29+AF30+AF32+AF33+AF34+AF36+AF37 -> 
B27: 1.913 | C27: ИП Ускова Т.В. / ИП / | D27: 1.913 Строительство магазина "Продукты" | G27: 0.9 | R27: 0.9 | W27: 15 | X27: 15 | Y27: 100 | Z27: 2.7 | AA27: 2.7 | AB27: 100 | AC27: 25 | AD27: 25 | AE27: 100
B28: 1.914 | C28: Магазин " Магнит" / Крупное / | D28: 1.914 Строительство магазина "Магнит" | E28: 13 | G28: 13 | H28: 0 | J28: 100 | Q28: 13 | R28: 13 | S28: 100 | W28: 13 | Y28: 0 | Z28: 2.08 | AB28: 0 | AC28: 20 | AD28: 20 | AE28: 100
B29: 1.915 | C29: ООО"РосСтрой-Сервис" / ИП / | D29: 1.915 Создание предприятия по ремонту грузового автотранспорта и лесозаготовительной техники | G29: 0
B30: 1.916 | C30: ИП Суворова Т.С. / ИП / Тонкино | D30: 1.916 Открытие магазина "Продукты" | G30: 0 | W30: 3.5 | X30: 3.5 | Y30: 100 | Z30: 0.6 | AA30: 0.6 | AB30: 100
B31: 1.917 | C31: Тонкинское райпо / Среднее / Тонкино | D31: 1.917 Открытие магазина "Строительные материалы" | G31: 0 | W31: 6.9 | X31: 6.9 | Y31: 100 | Z31: 1.3 | AA31: 1.3 | AB31: 100
B32: 1.918 | C32: Тонкинское райпо / Среднее / | D32: 1.918 Открытие магазина по продаже смешанных товаров | E32: 1 | G32: 1 | H32: 0 | J32: 100 | Q32: 1 | R32: 1 | S32: 100 | AD32: 1 | AF32: открыт магазин "Продукты" ИП Аревшатян А.А.
B33: 1.919 | C33: ИП Зорин / ИП / Тонкино | D33: 1.919 Расширение перечня услуг на станции технического обслуживания автомобилей | G33: 0 | T33: 1 | U33: 1 | V33: 100 | Z33: 0.2 | AA33: 0.2 | AB33: 100 | AC33: 4 | AD33: 4 | AE33: 100
B34: 1.920 | C34: ИП Метелькова / ИП / | D34: 1.920 Открытие магазина "Мебель" | G34: 0 | W34: 4 | X34: 4 | Y34: 100 | Z34: 0.8 | AA34: 0.8 | AB34: 100
B35: 1.921 | C35: ООО "ТД "Агрофирма "Нива" / Малое / | D35: 1.921 Открытие кафе | G35: 0 | W35: 3.5 | X35: 4.2 | Y35: 120 | Z35: 0.6 | AA35: 0.65 | AB35: 108.3333333
B36: 1.922 | C36: ИП Бушуев / ИП / Тонкино | D36: 1.922 Открытие станции технического обслуживания автомобилей | G36: 0 | T36: 4 | U36: 4 | V36: 100 | Z36: 0.7 | AA36: 0.7 | AB36: 100
B37: 1.923 | C37: ИП Скворцова М.С. / ИП / | D37: 1.923 Открытие косметического кабинета | G37: 2 | R37: 2 | U37: 0.06 | AA37: 0.01 | AD37: 1
E38: =E39 -> 6 | F38: =F39 -> 0 | G38: 6 | H38: 0 | I38: 0 | J38: 100 | K38: 0.8 | L38: 0.8 | M38: 0.8 | N38: 0 | O38: 0 | P38: 0 | Q38: 5.2 | R38: 5.2 | S38: 100 | T38: 45 | U38: 55.6 | V38: 123.5555556 | W38: 0 | X38: 0 | Y38: 0 | Z38: 8 | AA38: 9.3 | AB38: 116.25 | AC38: 2 | AD38: 2 | AE38: 100
B39: 4.60 | C39: ООО «ДСК Тонкинская» | D39: 4.60 Реконструкция и обновление парка строительных машин и оборудования по ремонту, строительству и содержанию дорог | E39: 6 | G39: 6 | H39: 0 | J39: 100 | K39: 0.8 | L39: 0.8 | M39: 0.8 | N39: 0 | P39: 0 | Q39: 5.2 | R39: 5.2 | S39: 100 | T39: 45 | U39: 55.6 | V39: 123.5555556 | Z39: 8 | AA39: 9.3 | AB39: 116.25 | AC39: 2 | AD39: 2 | AE39: 100
D40: всего | E40: =E6+E22+E26+E38 -> 59.15 | F40: =F6+F22+F26+F38 -> 36.69 | G40: 77.32 | H40: 0 | I40: 0 | J40: 130.7185123 | K40: 1.1 | L40: 1.1 | M40: 1.1 | N40: 0 | O40: 0 | P40: 0 | Q40: 58.05 | R40: 75.22 | S40: 129.57795 | T40: 132.1 | U40: 148.31 | V40: 112.2710068 | W40: 42.4 | X40: 29.42 | Y40: 69.38679245 | Z40: 29.8 | AA40: 28.48 | AB40: 95.5704698 | AC40: 87 | AD40: =AD8+AD9+AD10+AD11+AD12+AD13+AD14+AD15+AD16+AD17+AD18+AD19+AD20+AD21+AD23+AD27+AD28+AD29+AD30+AD31+AD32+AD33+AD37+AD39 -> 83 | AE40: 95.40229885
D41: по суб малого и ср | E41: =E40-E7-E11-E28-E31 -> 45.25 | F41: =F40-F7-F11-F28-F31 -> 36.69 | G41: 64.22 | H41: 0 | I41: 0 | J41: 141.9226519 | K41: 1.1 | L41: 1.1 | M41: 1.1 | N41: 0 | O41: 0 | P41: 0 | Q41: 44.15 | R41: 62.12 | S41: 140.7021518 | T41: 92.1 | U41: 103.76 | V41: 112.660152 | W41: 22.5 | X41: 22.52 | Y41: 100.0888889 | Z41: 20.42 | AA41: 20.98 | AB41: 102.7424094 | AC41: 61 | AD41: 63 | AE41: 103.2786885
